[Event "Titled Tuesday Blitz September 27 Late 2022"]
[White "Popilski, Gil"]
[Black "Muradli, Mahammad"]
[WhiteFideId "2809060"]
[BlackFideId "13409301"]
[WhiteElo "2537"]
[BlackElo "2611"]
[Result "1-0"]
[Round "04"]
[TimeControl "180+1"]
[Date "2022.09.28"]
[WhiteClock "0:00:04"]
[BlackClock "0:00:02"]

1. e4 {[%clk 0:03:00]}  Nc6 {[%clk 0:02:48]} 2. Nf3 {[%clk 0:02:57]}  d6 {[%clk 0:02:48]} 3. Bb5 {[%clk 0:02:55]}  g6 {[%clk 0:02:45]} 4. d4 {[%clk 0:02:54]}  Bd7 {[%clk 0:02:44]} 5. c4 {[%clk 0:02:53]}  Bg7 {[%clk 0:02:44]} 6. d5 {[%clk 0:02:08]}  Ne5 {[%clk 0:02:13]} 7. Nxe5 {[%clk 0:02:07]}  Bxe5 {[%clk 0:02:14]} 8. O-O {[%clk 0:02:06]}  Bg7 {[%clk 0:02:11]} 9. Re1 {[%clk 0:01:48]}  Nf6 {[%clk 0:02:10]} 10. Nc3 {[%clk 0:01:47]}  c6 {[%clk 0:02:09]} 11. Ba4 {[%clk 0:01:45]}  O-O {[%clk 0:02:10]} 12. Bg5 {[%clk 0:01:39]}  Rc8 {[%clk 0:02:10]} 13. Rc1 {[%clk 0:01:27]}  cxd5 {[%clk 0:01:57]} 14. cxd5 {[%clk 0:01:09]}  a6 {[%clk 0:01:32]} 15. Bb3 {[%clk 0:01:00]}  Qa5 {[%clk 0:01:31]} 16. e5 {[%clk 0:00:54]}  dxe5 {[%clk 0:01:31]} 17. Rxe5 {[%clk 0:00:53]}  Rfe8 {[%clk 0:01:25]} 18. h3 {[%clk 0:00:52]}  b5 {[%clk 0:01:19]} 19. d6 {[%clk 0:00:40]}  e6 {[%clk 0:01:15]} 20. Qf3 {[%clk 0:00:35]}  Ng4 {[%clk 0:01:02]} 21. Ree1 {[%clk 0:00:16]}  Ne5 {[%clk 0:00:59]} 22. Qg3 {[%clk 0:00:16]}  Nc4 {[%clk 0:00:25]} 23. Ne4 {[%clk 0:00:14]}  Qb6 {[%clk 0:00:04]} 24. Bxc4 {[%clk 0:00:12]}  Rxc4 {[%clk 0:00:03]} 25. Rxc4 {[%clk 0:00:11]}  bxc4 {[%clk 0:00:04]} 26. Nf6+ {[%clk 0:00:12]}  Bxf6 {[%clk 0:00:05]} 27. Bxf6 {[%clk 0:00:13]}  h6 {[%clk 0:00:06]} 28. Qf4 {[%clk 0:00:12]}  Kh7 {[%clk 0:00:06]} 29. Be7 {[%clk 0:00:10]}  Kg7 {[%clk 0:00:02]} 30. Qe5+ {[%clk 0:00:06]}  Kg8 {[%clk 0:00:02]} 31. Qf4 {[%clk 0:00:05]}  Kg7 {[%clk 0:00:02]} 32. h4 {[%clk 0:00:05]}  Qb5 {[%clk 0:00:01]} 33. h5 {[%clk 0:00:04]}  g5 {[%clk 0:00:01]} 34. Qf6+ {[%clk 0:00:04]}  Kg8 {[%clk 0:00:02]} 35. Qxh6 {[%clk 0:00:04]}  Qf5 {[%clk 0:00:01]} 36. Bf6 {[%clk 0:00:03]}  Qh7 {[%clk 0:00:01]} 37. Qxg5+ {[%clk 0:00:04]}  Kf8 {[%clk 0:00:02]} 38. Be7+ {[%clk 0:00:04]} 1-0


[Site "https://www.chess.com"]

[Event "Titled Tuesday Blitz September 27 Late 2022"]
[White "Rangel, Daniel"]
[Black "Kamsky, Gata"]
[WhiteFideId "2124475"]
[BlackFideId "2000024"]
[WhiteElo "2225"]
[BlackElo "2666"]
[Result "1/2-1/2"]
[Round "04"]
[TimeControl "180+1"]
[Date "2022.09.27"]
[WhiteClock "0:00:09"]
[BlackClock "0:00:16"]

1. c4 {[%clk 0:03:00]}  e5 {[%clk 0:02:43]} 2. g3 {[%clk 0:03:00]}  Nc6 {[%clk 0:02:39]} 3. Bg2 {[%clk 0:03:00]}  Bc5 {[%clk 0:02:37]} 4. e3 {[%clk 0:03:00]}  a6 {[%clk 0:02:34]} 5. Ne2 {[%clk 0:02:59]}  Ba7 {[%clk 0:02:34]} 6. O-O {[%clk 0:02:58]}  Nge7 {[%clk 0:02:33]} 7. Nbc3 {[%clk 0:02:57]}  d6 {[%clk 0:02:33]} 8. b3 {[%clk 0:02:55]}  O-O {[%clk 0:02:32]} 9. d4 {[%clk 0:02:54]}  exd4 {[%clk 0:02:31]} 10. Nxd4 {[%clk 0:02:55]}  Nxd4 {[%clk 0:02:29]} 11. exd4 {[%clk 0:02:56]}  Nf5 {[%clk 0:02:29]} 12. Bb2 {[%clk 0:02:56]}  Nxd4 {[%clk 0:02:22]} 13. Nd5 {[%clk 0:02:49]}  Nc6 {[%clk 0:02:16]} 14. Re1 {[%clk 0:02:49]}  Ne5 {[%clk 0:01:58]} 15. c5 {[%clk 0:02:45]}  Bxc5 {[%clk 0:01:39]} 16. Rc1 {[%clk 0:02:45]}  Bg4 {[%clk 0:01:38]} 17. Qd2 {[%clk 0:02:10]}  c6 {[%clk 0:01:36]} 18. Rxc5 {[%clk 0:01:05]}  cxd5 {[%clk 0:00:57]} 19. Rxd5 {[%clk 0:01:00]}  Nf3+ {[%clk 0:00:24]} 20. Bxf3 {[%clk 0:00:54]}  Bxf3 {[%clk 0:00:24]} 21. Rxd6 {[%clk 0:00:54]}  Qc7 {[%clk 0:00:20]} 22. Rc1 {[%clk 0:00:43]}  Qe7 {[%clk 0:00:19]} 23. Rd7 {[%clk 0:00:29]}  Qe4 {[%clk 0:00:19]} 24. Re1 {[%clk 0:00:23]}  Qg6 {[%clk 0:00:18]} 25. Rd6 {[%clk 0:00:18]}  Qg4 {[%clk 0:00:16]} 26. Qd4 {[%clk 0:00:09]}  Qxd4 {[%clk 0:00:16]} 27. Rxd4 {[%clk 0:00:09]}  Rfe8 {[%clk 0:00:16]} 1/2-1/2


[Site "https://www.chess.com"]

[Event "Titled Tuesday Blitz September 27 Late 2022"]
[White "Romanchuk, Viktor"]
[Black "Babazada, Khazar"]
[WhiteFideId "14109271"]
[BlackFideId "13413554"]
[WhiteElo "2242"]
[BlackElo "2409"]
[Result "0-1"]
[Round "04"]
[TimeControl "180+1"]
[Date "2022.09.28"]
[WhiteClock "0:00:06"]
[BlackClock "0:01:59"]

1. d4 {[%clk 0:03:00]}  e6 {[%clk 0:02:52]} 2. c4 {[%clk 0:03:00]}  b6 {[%clk 0:02:49]} 3. a3 {[%clk 0:02:59]}  Bb7 {[%clk 0:02:49]} 4. Nc3 {[%clk 0:02:58]}  f5 {[%clk 0:02:50]} 5. d5 {[%clk 0:02:58]}  Nf6 {[%clk 0:02:49]} 6. g3 {[%clk 0:02:59]}  exd5 {[%clk 0:02:47]} 7. cxd5 {[%clk 0:02:57]}  Bd6 {[%clk 0:02:44]} 8. Bg2 {[%clk 0:02:56]}  O-O {[%clk 0:02:44]} 9. Nf3 {[%clk 0:02:50]}  Na6 {[%clk 0:02:41]} 10. O-O {[%clk 0:02:49]}  Qe7 {[%clk 0:02:38]} 11. Nd4 {[%clk 0:02:33]}  Ne4 {[%clk 0:02:35]} 12. Ncb5 {[%clk 0:01:50]}  Bxd5 {[%clk 0:02:21]} 13. Nxd6 {[%clk 0:01:44]}  Qxd6 {[%clk 0:02:20]} 14. Bf4 {[%clk 0:01:33]}  Qe7 {[%clk 0:02:11]} 15. Nb5 {[%clk 0:01:10]}  Bc6 {[%clk 0:02:07]} 16. Qb3+ {[%clk 0:00:46]}  Kh8 {[%clk 0:02:06]} 17. Rac1 {[%clk 0:00:34]}  Nac5 {[%clk 0:02:01]} 18. Qc4 {[%clk 0:00:06]}  d5 {[%clk 0:01:59]} 0-1


[Site "https://www.chess.com"]

[Event "Titled Tuesday Blitz September 27 Late 2022"]
[White "Sernecki, Franciszek"]
[Black "Mesa Cruz, Juan Carlos"]
[WhiteFideId "1169297"]
[BlackFideId "6423400"]
[WhiteElo "2168"]
[BlackElo "1917"]
[Result "1-0"]
[Round "04"]
[TimeControl "180+1"]
[Date "2022.09.28"]
[WhiteClock "0:00:08"]
[BlackClock "0:00:12"]

1. c4 {[%clk 0:03:00]}  e5 {[%clk 0:02:58]} 2. Nc3 {[%clk 0:03:00]}  Nf6 {[%clk 0:02:57]} 3. g3 {[%clk 0:03:01]}  Bb4 {[%clk 0:02:56]} 4. Nd5 {[%clk 0:03:01]}  Bc5 {[%clk 0:02:55]} 5. Bg2 {[%clk 0:03:01]}  O-O {[%clk 0:02:54]} 6. e3 {[%clk 0:03:02]}  c6 {[%clk 0:02:53]} 7. Nxf6+ {[%clk 0:03:01]}  Qxf6 {[%clk 0:02:53]} 8. Ne2 {[%clk 0:03:02]}  a5 {[%clk 0:02:29]} 9. O-O {[%clk 0:03:01]}  d6 {[%clk 0:02:27]} 10. d4 {[%clk 0:03:00]}  Bb6 {[%clk 0:02:27]} 11. b3 {[%clk 0:02:59]}  Bf5 {[%clk 0:02:21]} 12. Bb2 {[%clk 0:02:59]}  Nd7 {[%clk 0:02:19]} 13. dxe5 {[%clk 0:02:59]}  dxe5 {[%clk 0:02:18]} 14. Nc3 {[%clk 0:02:54]}  Rfd8 {[%clk 0:02:15]} 15. Qe2 {[%clk 0:02:53]}  Nc5 {[%clk 0:02:12]} 16. Rfd1 {[%clk 0:02:52]}  Nd3 {[%clk 0:02:07]} 17. Ba3 {[%clk 0:02:50]}  Nb4 {[%clk 0:01:41]} 18. Na4 {[%clk 0:02:46]}  Ba7 {[%clk 0:01:38]} 19. e4 {[%clk 0:02:37]}  Be6 {[%clk 0:01:31]} 20. Bxb4 {[%clk 0:02:30]}  axb4 {[%clk 0:01:30]} 21. c5 {[%clk 0:02:31]}  Qe7 {[%clk 0:01:23]} 22. Qc2 {[%clk 0:02:29]}  Rxd1+ {[%clk 0:01:20]} 23. Rxd1 {[%clk 0:02:30]}  Rd8 {[%clk 0:01:21]} 24. Bf1 {[%clk 0:02:15]}  f6 {[%clk 0:01:17]} 25. Rxd8+ {[%clk 0:02:12]}  Qxd8 {[%clk 0:01:17]} 26. Bc4 {[%clk 0:02:13]}  Kf7 {[%clk 0:01:13]} 27. Bxe6+ {[%clk 0:02:08]}  Kxe6 {[%clk 0:01:13]} 28. Qc4+ {[%clk 0:02:09]}  Ke7 {[%clk 0:01:09]} 29. Qxb4 {[%clk 0:02:08]}  Qd7 {[%clk 0:00:59]} 30. Nb2 {[%clk 0:02:05]}  h5 {[%clk 0:00:58]} 31. h4 {[%clk 0:02:04]}  Qd4 {[%clk 0:00:52]} 32. Qxd4 {[%clk 0:02:03]}  exd4 {[%clk 0:00:52]} 33. Nd3 {[%clk 0:02:03]}  Ke6 {[%clk 0:00:45]} 34. b4 {[%clk 0:01:55]}  b5 {[%clk 0:00:43]} 35. f4 {[%clk 0:01:50]}  Bb8 {[%clk 0:00:38]} 36. Kf2 {[%clk 0:01:49]}  f5 {[%clk 0:00:36]} 37. Kf3 {[%clk 0:01:49]}  g6 {[%clk 0:00:33]} 38. Nc1 {[%clk 0:01:46]}  Bc7 {[%clk 0:00:28]} 39. Nb3 {[%clk 0:01:44]}  d3 {[%clk 0:00:28]} 40. Ke3 {[%clk 0:01:31]}  fxe4 {[%clk 0:00:25]} 41. Kxe4 {[%clk 0:01:31]}  Bd8 {[%clk 0:00:23]} 42. Nd4+ {[%clk 0:01:27]}  Kd7 {[%clk 0:00:23]} 43. Kxd3 {[%clk 0:01:27]}  Bf6 {[%clk 0:00:23]} 44. Nb3 {[%clk 0:01:19]}  Ke6 {[%clk 0:00:22]} 45. Nd2 {[%clk 0:01:14]}  Kf5 {[%clk 0:00:18]} 46. Ne4 {[%clk 0:01:09]}  Be7 {[%clk 0:00:17]} 47. Nf2 {[%clk 0:01:06]}  Bf6 {[%clk 0:00:13]} 48. Ne4 {[%clk 0:01:06]}  Be7 {[%clk 0:00:13]} 49. Ke3 {[%clk 0:01:03]}  Kg4 {[%clk 0:00:11]} 50. Kf2 {[%clk 0:01:03]}  Bd8 {[%clk 0:00:11]} 51. Kg2 {[%clk 0:00:53]}  Be7 {[%clk 0:00:11]} 52. Nf2+ {[%clk 0:00:53]}  Kf5 {[%clk 0:00:10]} 53. Kf3 {[%clk 0:00:53]}  Bf6 {[%clk 0:00:10]} 54. Nd1 {[%clk 0:00:43]}  Bd4 {[%clk 0:00:10]} 55. a3 {[%clk 0:00:23]}  Kf6 {[%clk 0:00:07]} 56. Ke4 {[%clk 0:00:23]}  Bg1 {[%clk 0:00:07]} 57. Nc3 {[%clk 0:00:17]}  Ke6 {[%clk 0:00:07]} 58. a4 {[%clk 0:00:15]}  bxa4 {[%clk 0:00:06]} 59. Nxa4 {[%clk 0:00:16]}  Bf2 {[%clk 0:00:06]} 60. Kf3 {[%clk 0:00:10]}  Be1 {[%clk 0:00:06]} 61. g4 {[%clk 0:00:07]}  Bxb4 {[%clk 0:00:06]} 62. f5+ {[%clk 0:00:07]}  gxf5 {[%clk 0:00:06]} 63. gxh5 {[%clk 0:00:08]}  Be1 {[%clk 0:00:05]} 64. h6 {[%clk 0:00:06]}  Kf6 {[%clk 0:00:05]} 65. Nb2 {[%clk 0:00:05]}  Bxh4 {[%clk 0:00:04]} 66. Nc4 {[%clk 0:00:05]}  Kg6 {[%clk 0:00:04]} 67. Ne5+ {[%clk 0:00:06]}  Kxh6 {[%clk 0:00:04]} 68. Nxc6 {[%clk 0:00:07]}  Kg5 {[%clk 0:00:04]} 69. Nd4 {[%clk 0:00:04]}  Kf6 {[%clk 0:00:04]} 70. c6 {[%clk 0:00:05]}  Ke7 {[%clk 0:00:03]} 71. Nb5 {[%clk 0:00:04]}  Kd8 {[%clk 0:00:02]} 72. Kf4 {[%clk 0:00:05]}  Be7 {[%clk 0:00:01]} 73. Kxf5 {[%clk 0:00:05]}  Kc8 {[%clk 0:00:01]} 74. Ke4 {[%clk 0:00:06]}  Bd8 {[%clk 0:00:01]} 75. Kd5 {[%clk 0:00:07]}  Bc7 {[%clk 0:00:02]} 76. Kc5 {[%clk 0:00:07]}  Bd8 {[%clk 0:00:03]} 77. Nd6+ {[%clk 0:00:07]}  Kc7 {[%clk 0:00:03]} 78. Nc4 {[%clk 0:00:06]}  Kc8 {[%clk 0:00:04]} 79. Nb2 {[%clk 0:00:05]}  Bc7 {[%clk 0:00:05]} 80. Nd3 {[%clk 0:00:05]}  Kb8 {[%clk 0:00:05]} 81. Nb4 {[%clk 0:00:06]}  Kc8 {[%clk 0:00:06]} 82. Nd5 {[%clk 0:00:07]}  Bd8 {[%clk 0:00:07]} 83. Kd6 {[%clk 0:00:07]}  Bc7+ {[%clk 0:00:08]} 84. Nxc7 {[%clk 0:00:06]}  Kd8 {[%clk 0:00:09]} 85. Nd5 {[%clk 0:00:07]}  Kc8 {[%clk 0:00:10]} 86. Ne7+ {[%clk 0:00:06]}  Kb8 {[%clk 0:00:11]} 87. c7+ {[%clk 0:00:07]}  Kb7 {[%clk 0:00:11]} 88. c8=Q+ {[%clk 0:00:07]}  Kb6 {[%clk 0:00:12]} 89. Qc6+ {[%clk 0:00:08]} 1-0


[Site "https://www.chess.com"]

[Event "Titled Tuesday Blitz September 27 Late 2022"]
[White "Soham Kamotra"]
[Black "Rosenberg, Evan S"]
[WhiteFideId "46647490"]
[BlackFideId "2019299"]
[WhiteElo "2082"]
[BlackElo "2401"]
[Result "1-0"]
[Round "04"]
[TimeControl "180+1"]
[Date "2022.09.28"]
[WhiteClock "0:00:21"]
[BlackClock "0:00:08"]

1. b3 {[%clk 0:01:13]}  e5 {[%clk 0:02:59]} 2. Bb2 {[%clk 0:01:13]}  Nc6 {[%clk 0:03:00]} 3. c4 {[%clk 0:01:13]}  f5 {[%clk 0:02:55]} 4. Nc3 {[%clk 0:01:13]}  Nf6 {[%clk 0:02:55]} 5. g3 {[%clk 0:01:14]}  Bb4 {[%clk 0:02:55]} 6. Bg2 {[%clk 0:01:15]}  a5 {[%clk 0:02:53]} 7. e3 {[%clk 0:01:15]}  d6 {[%clk 0:02:53]} 8. Nge2 {[%clk 0:01:15]}  e4 {[%clk 0:02:52]} 9. O-O {[%clk 0:01:15]}  Ne5 {[%clk 0:02:51]} 10. Nf4 {[%clk 0:01:15]}  c6 {[%clk 0:02:35]} 11. d4 {[%clk 0:01:15]}  Nf3+ {[%clk 0:02:29]} 12. Bxf3 {[%clk 0:01:14]}  exf3 {[%clk 0:02:30]} 13. Qxf3 {[%clk 0:01:15]}  Bxc3 {[%clk 0:02:18]} 14. Bxc3 {[%clk 0:01:15]}  Ne4 {[%clk 0:02:18]} 15. Rac1 {[%clk 0:01:15]}  O-O {[%clk 0:02:17]} 16. Qe2 {[%clk 0:01:13]}  Qe8 {[%clk 0:02:10]} 17. f3 {[%clk 0:01:13]}  Nxc3 {[%clk 0:02:05]} 18. Rxc3 {[%clk 0:01:14]}  g5 {[%clk 0:02:05]} 19. Nd3 {[%clk 0:01:12]}  f4 {[%clk 0:02:04]} 20. gxf4 {[%clk 0:00:59]}  gxf4 {[%clk 0:02:04]} 21. Nxf4 {[%clk 0:01:00]}  Kh8 {[%clk 0:01:40]} 22. Kf2 {[%clk 0:00:57]}  Bf5 {[%clk 0:01:32]} 23. Rg1 {[%clk 0:00:56]}  Qe7 {[%clk 0:01:30]} 24. Ke1 {[%clk 0:00:48]}  Rae8 {[%clk 0:01:27]} 25. Kd2 {[%clk 0:00:47]}  Qh4 {[%clk 0:01:21]} 26. Rg3 {[%clk 0:00:47]}  Bd7 {[%clk 0:01:10]} 27. Qf2 {[%clk 0:00:47]}  Rxf4 {[%clk 0:01:05]} 28. exf4 {[%clk 0:00:43]}  Qxf4+ {[%clk 0:01:05]} 29. Kc2 {[%clk 0:00:38]}  Bf5+ {[%clk 0:01:02]} 30. Kb2 {[%clk 0:00:38]}  Bg6 {[%clk 0:00:54]} 31. Rg1 {[%clk 0:00:37]}  b5 {[%clk 0:00:51]} 32. cxb5 {[%clk 0:00:29]}  cxb5 {[%clk 0:00:51]} 33. Rd1 {[%clk 0:00:23]}  b4 {[%clk 0:00:50]} 34. Rcc1 {[%clk 0:00:21]}  a4 {[%clk 0:00:48]} 35. Qd2 {[%clk 0:00:19]}  a3+ {[%clk 0:00:46]} 36. Ka1 {[%clk 0:00:19]}  Qxf3 {[%clk 0:00:44]} 37. Qxb4 {[%clk 0:00:17]}  Bh5 {[%clk 0:00:35]} 38. Qxa3 {[%clk 0:00:17]}  Qg2 {[%clk 0:00:30]} 39. Qb2 {[%clk 0:00:16]}  Re2 {[%clk 0:00:28]} 40. Qa3 {[%clk 0:00:14]}  Re8 {[%clk 0:00:25]} 41. Rg1 {[%clk 0:00:13]}  Qxh2 {[%clk 0:00:23]} 42. Qb2 {[%clk 0:00:13]}  Qf4 {[%clk 0:00:21]} 43. d5+ {[%clk 0:00:13]}  Qe5 {[%clk 0:00:22]} 44. Qxe5+ {[%clk 0:00:13]}  dxe5 {[%clk 0:00:22]} 45. Rce1 {[%clk 0:00:13]}  e4 {[%clk 0:00:22]} 46. Rg5 {[%clk 0:00:13]}  Bf3 {[%clk 0:00:21]} 47. d6 {[%clk 0:00:13]}  Rd8 {[%clk 0:00:20]} 48. Rd5 {[%clk 0:00:13]}  e3 {[%clk 0:00:18]} 49. Rd3 {[%clk 0:00:13]}  Kg7 {[%clk 0:00:16]} 50. Rexe3 {[%clk 0:00:13]}  Bc6 {[%clk 0:00:17]} 51. Rd2 {[%clk 0:00:14]}  Kf6 {[%clk 0:00:17]} 52. Kb2 {[%clk 0:00:14]}  h5 {[%clk 0:00:17]} 53. Rc3 {[%clk 0:00:15]}  Be4 {[%clk 0:00:16]} 54. Rc4 {[%clk 0:00:15]}  Bf5 {[%clk 0:00:16]} 55. Rc5 {[%clk 0:00:15]}  Bg4 {[%clk 0:00:15]} 56. b4 {[%clk 0:00:13]}  h4 {[%clk 0:00:15]} 57. Rd4 {[%clk 0:00:12]}  Bf5 {[%clk 0:00:13]} 58. Rxh4 {[%clk 0:00:13]}  Rxd6 {[%clk 0:00:13]} 59. Rf4 {[%clk 0:00:14]}  Rd2+ {[%clk 0:00:12]} 60. Kc1 {[%clk 0:00:12]}  Rxa2 {[%clk 0:00:10]} 61. Rcxf5+ {[%clk 0:00:10]}  Ke6 {[%clk 0:00:11]} 62. Rc5 {[%clk 0:00:10]}  Kd6 {[%clk 0:00:11]} 63. Rfc4 {[%clk 0:00:11]}  Ra1+ {[%clk 0:00:11]} 64. Kd2 {[%clk 0:00:12]}  Ra2+ {[%clk 0:00:11]} 65. Rc2 {[%clk 0:00:13]}  Ra3 {[%clk 0:00:11]} 66. Rb2 {[%clk 0:00:13]}  Rh3 {[%clk 0:00:11]} 67. Kc2 {[%clk 0:00:14]}  Rh2+ {[%clk 0:00:11]} 68. Kb1 {[%clk 0:00:14]}  Rh1+ {[%clk 0:00:11]} 69. Ka2 {[%clk 0:00:14]}  Rh3 {[%clk 0:00:11]} 70. Ra5 {[%clk 0:00:15]}  Kc6 {[%clk 0:00:11]} 71. Ra3 {[%clk 0:00:16]}  Rh5 {[%clk 0:00:10]} 72. b5+ {[%clk 0:00:17]}  Kb6 {[%clk 0:00:11]} 73. Ra6+ {[%clk 0:00:17]}  Kb7 {[%clk 0:00:11]} 74. Rf6 {[%clk 0:00:17]}  Rh7 {[%clk 0:00:10]} 75. b6 {[%clk 0:00:17]}  Rg7 {[%clk 0:00:09]} 76. Rf3 {[%clk 0:00:18]}  Rh7 {[%clk 0:00:08]} 77. Ra3 {[%clk 0:00:19]}  Rh1 {[%clk 0:00:07]} 78. Ra7+ {[%clk 0:00:19]}  Kb8 {[%clk 0:00:08]} 79. Rf7 {[%clk 0:00:19]}  Ka8 {[%clk 0:00:07]} 80. b7+ {[%clk 0:00:19]}  Kb8 {[%clk 0:00:05]} 81. Rf8+ {[%clk 0:00:20]}  Kc7 {[%clk 0:00:06]} 82. b8=Q+ {[%clk 0:00:21]}  Kd7 {[%clk 0:00:07]} 83. Qe8+ {[%clk 0:00:19]}  Kc7 {[%clk 0:00:07]} 84. Qe7+ {[%clk 0:00:19]}  Kc6 {[%clk 0:00:07]} 85. Rf6+ {[%clk 0:00:20]}  Kd5 {[%clk 0:00:07]} 86. Qd6+ {[%clk 0:00:20]}  Ke4 {[%clk 0:00:08]} 87. Rf4+ {[%clk 0:00:20]}  Ke3 {[%clk 0:00:08]} 88. Qd4# {[%clk 0:00:21]} 1-0


[Site "https://www.chess.com"]

[Event "Titled Tuesday Blitz September 27 Late 2022"]
[White "Svane, Rasmus"]
[Black "Yanchenko, Roman"]
[WhiteFideId "4657101"]
[BlackFideId "4137329"]
[WhiteElo "2674"]
[BlackElo "2514"]
[Result "1-0"]
[Round "04"]
[TimeControl "180+1"]
[Date "2022.09.27"]
[WhiteClock "0:00:06"]
[BlackClock "0:00:05"]

1. Nf3 {[%clk 0:03:00]}  d5 {[%clk 0:02:59]} 2. g3 {[%clk 0:03:00]}  Bf5 {[%clk 0:02:58]} 3. Bg2 {[%clk 0:03:00]}  e6 {[%clk 0:02:59]} 4. c4 {[%clk 0:02:59]}  c6 {[%clk 0:02:58]} 5. Qb3 {[%clk 0:02:56]}  Qb6 {[%clk 0:02:58]} 6. O-O {[%clk 0:02:56]}  Nf6 {[%clk 0:02:58]} 7. d3 {[%clk 0:02:56]}  Nbd7 {[%clk 0:02:58]} 8. cxd5 {[%clk 0:02:56]}  exd5 {[%clk 0:02:50]} 9. Qc2 {[%clk 0:02:56]}  Be7 {[%clk 0:02:44]} 10. Nc3 {[%clk 0:02:55]}  O-O {[%clk 0:02:44]} 11. e4 {[%clk 0:02:56]}  dxe4 {[%clk 0:02:44]} 12. dxe4 {[%clk 0:02:56]}  Bg6 {[%clk 0:02:44]} 13. Be3 {[%clk 0:02:54]}  Qa5 {[%clk 0:02:42]} 14. Rad1 {[%clk 0:02:52]}  Bc5 {[%clk 0:02:26]} 15. Nd4 {[%clk 0:02:41]}  Bb6 {[%clk 0:01:23]} 16. h3 {[%clk 0:02:36]}  Rae8 {[%clk 0:01:16]} 17. f4 {[%clk 0:01:59]}  h6 {[%clk 0:00:45]} 18. Kh1 {[%clk 0:01:49]}  Bh5 {[%clk 0:00:41]} 19. Rde1 {[%clk 0:01:47]}  Bg6 {[%clk 0:00:33]} 20. Bf2 {[%clk 0:01:35]}  Bh7 {[%clk 0:00:32]} 21. a3 {[%clk 0:01:17]}  Qa6 {[%clk 0:00:32]} 22. Nb3 {[%clk 0:01:06]}  Qc4 {[%clk 0:00:30]} 23. Nd2 {[%clk 0:01:04]}  Qe6 {[%clk 0:00:29]} 24. Bxb6 {[%clk 0:01:00]}  axb6 {[%clk 0:00:30]} 25. Qb3 {[%clk 0:00:57]}  Qxb3 {[%clk 0:00:28]} 26. Nxb3 {[%clk 0:00:58]}  Nc5 {[%clk 0:00:29]} 27. Nxc5 {[%clk 0:00:58]}  bxc5 {[%clk 0:00:30]} 28. g4 {[%clk 0:00:53]}  Re7 {[%clk 0:00:28]} 29. Kh2 {[%clk 0:00:53]}  Rfe8 {[%clk 0:00:28]} 30. e5 {[%clk 0:00:40]}  Nd7 {[%clk 0:00:28]} 31. Rd1 {[%clk 0:00:41]}  Bc2 {[%clk 0:00:25]} 32. Rd2 {[%clk 0:00:41]}  Bb3 {[%clk 0:00:26]} 33. Ne4 {[%clk 0:00:39]}  f6 {[%clk 0:00:25]} 34. Nd6 {[%clk 0:00:40]}  Rb8 {[%clk 0:00:22]} 35. Nf5 {[%clk 0:00:31]}  Rf7 {[%clk 0:00:22]} 36. exf6 {[%clk 0:00:21]}  Nxf6 {[%clk 0:00:23]} 37. Re1 {[%clk 0:00:19]}  Bd5 {[%clk 0:00:22]} 38. Ne7+ {[%clk 0:00:20]}  Kf8 {[%clk 0:00:21]} 39. Nxd5 {[%clk 0:00:20]}  cxd5 {[%clk 0:00:20]} 40. Re5 {[%clk 0:00:17]}  Rd8 {[%clk 0:00:19]} 41. f5 {[%clk 0:00:17]}  b6 {[%clk 0:00:20]} 42. Kg3 {[%clk 0:00:15]}  Rfd7 {[%clk 0:00:20]} 43. h4 {[%clk 0:00:15]}  Re7 {[%clk 0:00:20]} 44. Rxe7 {[%clk 0:00:13]}  Kxe7 {[%clk 0:00:21]} 45. g5 {[%clk 0:00:14]}  hxg5 {[%clk 0:00:21]} 46. hxg5 {[%clk 0:00:14]}  Nh7 {[%clk 0:00:21]} 47. Kf4 {[%clk 0:00:15]}  d4 {[%clk 0:00:21]} 48. Re2+ {[%clk 0:00:12]}  Kd7 {[%clk 0:00:21]} 49. Be4 {[%clk 0:00:10]}  Nf8 {[%clk 0:00:21]} 50. f6 {[%clk 0:00:10]}  gxf6 {[%clk 0:00:21]} 51. gxf6 {[%clk 0:00:11]}  Ne6+ {[%clk 0:00:22]} 52. Ke5 {[%clk 0:00:12]}  Ng5 {[%clk 0:00:21]} 53. Bf5+ {[%clk 0:00:12]}  Kc7 {[%clk 0:00:21]} 54. Rg2 {[%clk 0:00:12]}  Re8+ {[%clk 0:00:20]} 55. Kf4 {[%clk 0:00:12]}  d3 {[%clk 0:00:13]} 56. Kxg5 {[%clk 0:00:05]}  Re2 {[%clk 0:00:12]} 57. Rg1 {[%clk 0:00:04]}  d2 {[%clk 0:00:12]} 58. Rd1 {[%clk 0:00:05]}  Rg2+ {[%clk 0:00:12]} 59. Kf4 {[%clk 0:00:04]}  Rf2+ {[%clk 0:00:12]} 60. Ke5 {[%clk 0:00:03]}  Re2+ {[%clk 0:00:12]} 61. Be4 {[%clk 0:00:04]}  Rf2 {[%clk 0:00:12]} 62. f7 {[%clk 0:00:04]}  Rxf7 {[%clk 0:00:12]} 63. Rxd2 {[%clk 0:00:04]}  Re7+ {[%clk 0:00:13]} 64. Kf4 {[%clk 0:00:05]}  b5 {[%clk 0:00:13]} 65. Ke3 {[%clk 0:00:05]}  Kb6 {[%clk 0:00:13]} 66. Rg2 {[%clk 0:00:05]}  Ka5 {[%clk 0:00:13]} 67. Kd3 {[%clk 0:00:06]}  c4+ {[%clk 0:00:13]} 68. Kd4 {[%clk 0:00:06]}  Rd7+ {[%clk 0:00:12]} 69. Kc3 {[%clk 0:00:06]}  Re7 {[%clk 0:00:10]} 70. Bc2 {[%clk 0:00:06]}  Re3+ {[%clk 0:00:10]} 71. Kd2 {[%clk 0:00:06]}  Rh3 {[%clk 0:00:10]} 72. Rf2 {[%clk 0:00:06]}  Rh5 {[%clk 0:00:08]} 73. Bd1 {[%clk 0:00:07]}  Rd5+ {[%clk 0:00:08]} 74. Kc2 {[%clk 0:00:07]}  b4 {[%clk 0:00:08]} 75. axb4+ {[%clk 0:00:07]}  Kxb4 {[%clk 0:00:08]} 76. Be2 {[%clk 0:00:08]}  Re5 {[%clk 0:00:09]} 77. Bf1 {[%clk 0:00:07]}  Re4 {[%clk 0:00:09]} 78. Rd2 {[%clk 0:00:06]}  Rf4 {[%clk 0:00:09]} 79. Be2 {[%clk 0:00:05]}  Rf2 {[%clk 0:00:09]} 80. Bd1 {[%clk 0:00:05]}  Rf4 {[%clk 0:00:09]} 81. Rg2 {[%clk 0:00:05]}  Rh4 {[%clk 0:00:08]} 82. Be2 {[%clk 0:00:04]}  Re4 {[%clk 0:00:08]} 83. Rf2 {[%clk 0:00:03]}  Re3 {[%clk 0:00:07]} 84. Rh2 {[%clk 0:00:03]}  Re4 {[%clk 0:00:08]} 85. Rg2 {[%clk 0:00:03]}  Re3 {[%clk 0:00:08]} 86. Kd2 {[%clk 0:00:03]}  Rb3 {[%clk 0:00:07]} 87. Kc2 {[%clk 0:00:02]}  Re3 {[%clk 0:00:07]} 88. Bd1 {[%clk 0:00:03]}  Re4 {[%clk 0:00:07]} 89. Rg8 {[%clk 0:00:03]}  Rh4 {[%clk 0:00:07]} 90. Rb8+ {[%clk 0:00:03]}  Kc5 {[%clk 0:00:07]} 91. Be2 {[%clk 0:00:04]}  Rh2 {[%clk 0:00:07]} 92. Kd2 {[%clk 0:00:04]}  Rh4 {[%clk 0:00:05]} 93. Rc8+ {[%clk 0:00:04]}  Kb4 {[%clk 0:00:06]} 94. Rb8+ {[%clk 0:00:04]}  Kc5 {[%clk 0:00:06]} 95. Re8 {[%clk 0:00:04]}  Kb4 {[%clk 0:00:06]} 96. Re7 {[%clk 0:00:04]}  Rd4+ {[%clk 0:00:06]} 97. Kc2 {[%clk 0:00:04]}  Rh4 {[%clk 0:00:07]} 98. Rb7+ {[%clk 0:00:04]}  Kc5 {[%clk 0:00:07]} 99. Rf7 {[%clk 0:00:04]}  Kb4 {[%clk 0:00:07]} 100. Rf5 {[%clk 0:00:04]}  Re4 {[%clk 0:00:07]} 101. Bf1 {[%clk 0:00:04]}  Rh4 {[%clk 0:00:07]} 102. Rf6 {[%clk 0:00:04]}  Rh2+ {[%clk 0:00:08]} 103. Kb1 {[%clk 0:00:05]}  c3 {[%clk 0:00:07]} 104. Rb6+ {[%clk 0:00:04]}  Kc5 {[%clk 0:00:07]} 105. Rb5+ {[%clk 0:00:05]}  Kd4 {[%clk 0:00:07]} 106. Rb4+ {[%clk 0:00:05]}  Ke3 {[%clk 0:00:07]} 107. bxc3 {[%clk 0:00:04]}  Rh1 {[%clk 0:00:08]} 108. Kc2 {[%clk 0:00:04]}  Rxf1 {[%clk 0:00:08]} 109. Rd4 {[%clk 0:00:05]}  Rg1 {[%clk 0:00:05]} 110. Rh4 {[%clk 0:00:04]}  Rg8 {[%clk 0:00:03]} 111. c4 {[%clk 0:00:05]}  Ke2 {[%clk 0:00:02]} 112. Kc3 {[%clk 0:00:05]}  Ke3 {[%clk 0:00:02]} 113. c5 {[%clk 0:00:04]}  Rg1 {[%clk 0:00:03]} 114. Kc4 {[%clk 0:00:05]}  Rc1+ {[%clk 0:00:03]} 115. Kd5 {[%clk 0:00:05]}  Rd1+ {[%clk 0:00:04]} 116. Kc6 {[%clk 0:00:06]}  Rc1 {[%clk 0:00:04]} 117. Kd6 {[%clk 0:00:06]}  Rh1 {[%clk 0:00:05]} 118. Rxh1 {[%clk 0:00:06]} 1-0


[Site "https://www.chess.com"]